Cogmind - Beta 14 @@@ ROGUE MODE // 2024.11.07 @ 17:51:46 Player: Shimmyarah Result: Self-destructed Performance ------------- Evolutions (1) 500 Regions Visited (2) 400 Robots Destroyed (24) 120 Value Destroyed (593) 593 Prototype IDs (1) 20 Alien Tech Used (0) 0 Bonus (0) 0 TOTAL SCORE: 1633 Bonus ------- None Cogmind --------- Core Integrity 265/400 Matter 300/300 Energy 20/100 System Corruption 1% Temperature Cool (9) Movement Core (150) Ox2 Location -9/Materials Parts ------- > --- POWER (1) -------- Ion Engine > --- PROPULSION (3) --- (None) > --- UTILITY (3) ------ Large Storage Unit Advanced Weight Redist. System > --- WEAPON (2) ------- Heavy EM Shotgun > --- INVENTORY (15) --- Ion Engine Light Ion Engine Advanced Weight Redist. System Visual Processing Unit Signal Interpreter Seismic Detector Small Laser Small Laser Ion Cannon Ion Cannon Ion Cannon Ion Cannon Assault Rifle Datajack Peak State ------------ > --- POWER ------------ Ion Engine > --- PROPULSION ------- Aluminum Leg Aluminum Leg > --- UTILITY ---------- Large Storage Unit Advanced Weight Redist. System Improved Terrain Scanner > --- WEAPON ----------- Heavy EM Shotgun Medium Laser > --- INVENTORY -------- Ion Engine Light Ion Engine Advanced Weight Redist. System Seismic Detector Heavy EM Shotgun Small Laser Small Laser Ion Cannon Ion Cannon Ion Cannon Ion Cannon Assault Rifle Datajack [Rating: 17] Favorites ----------- Power Ion Engine Engine Ion Engine Propulsion Light Treads Treads Light Treads Leg Aluminum Leg Utility Improved Terrain Scanner Device Improved Terrain Scanner Storage Large Storage Unit Weapon Medium Laser Energy Gun Medium Laser Ballistic Gun Assault Rifle Build | -11 -10 -9 ------- Run | Yrd Mat Mat Slots Evolved 2 | . . 2 Power . | . . . Propulsion 1 | . . 1 Utility 1 | . . 1 Weapon . | . . . Parts Attached 20 | 5 12 3 Power 3 | 1 2 . Engine 3 | 1 2 . Core . | . . . Reactor . | . . . Propulsion 4 | 2 2 . Treads 2 | 2 . . Leg 2 | . 2 . Wheel . | . . . Hover . | . . . Flight . | . . . Utility 5 | 1 3 1 Device 3 | . 2 1 Storage 2 | 1 1 . Processor . | . . . Hackware . | . . . Protection . | . . . Artifact . | . . . Weapon 8 | 1 5 2 Energy Gun 7 | 1 4 2 Energy Cannon . | . . . Ballistic Gun 1 | . 1 . Ballistic Cannon . | . . . Launcher . | . . . Special Weapon . | . . . Impact Weapon . | . . . Slashing Weapon . | . . . Piercing Weapon . | . . . Special Melee Weapon . | . . . Unidentified Prototypes 1 | . . 1 Parts Lost 12 | . 7 5 Power 2 | . 2 . Propulsion 4 | . 2 2 Utility 2 | . 1 1 Weapon 4 | . 2 2 Highest Loss Streak 5 | . 4 5 To Critical Strikes . | . . . Average Slot Usage (%) 80 | . 79 82 Engine 11 | . 11 11 Treads 14 | . 19 . Leg 5 | . . 20 Device 11 | . 8 19 Storage 13 | . 14 11 Energy Gun 21 | . 21 20 Ballistic Gun 2 | . 3 . Peak Build Rating 17 | 6 10 17 Average Rating 8 | 4 6 15 On Entrance 5 | . 6 9 Naked Turns . | . . . Heaviest Build 32 | 12 30 32 Greatest Support 40 | 40 40 29 Greatest Overweight (x) 7 | . 7 1 Average Overweight (x) . | . . 1 Largest Inventory Capacity 15 | 8 15 15 Average Capacity 11 | 7 10 15 Most Carried 15 | 6 9 15 Average Carried 7 | 3 6 13 Final Capacity 15 | 8 15 15 Final Carried 14 | 6 6 14 Class Distribution -------------------- 75% | Mutant 24% | Scavenger-Mutant Dominant Class ---------------- Mutant | -10/Materials Scavenger-Mutant | -9/Materials Resources | -11 -10 -9 ----------- Run | Yrd Mat Mat Matter Collected 401 | 250 109 42 Remotely . | . . . Salvage Created 921 | 147 567 207 Parts 49 | 6 28 15 Haulers Intercepted . | . . . Recyclers Shooed 2 | . 2 . Parts Field Recycled . | . . . Retrieved Matter . | . . . Parts Self-Destructed . | . . . Prevented . | . . . Kills | -11 -10 -9 ------- Run | Yrd Mat Mat Combat Hostiles Destroyed 17 | . 13 4 Guns 16 | . 12 4 AOE 1 | . 1 . Classes Destroyed 7 | 2 2 3 Worker 1 | . . 1 Tunneler 3 | 2 1 . Recycler 2 | 1 1 . Watcher 1 | . . 1 Swarmer 3 | . 3 . Grunt 13 | . 10 3 Sentry 1 | . . 1 Best Kill Streak 6 | 2 6 3 Combat Bots Only 5 | . 5 2 Max Kills in Single Turn 2 | 1 2 2 Gunslinging . | . . . Exploded 1 | . 1 . Melee . | . . . Uniques/NPCs Destroyed . | . . . Combat | -11 -10 -9 -------- Run | Yrd Mat Mat Hostile Shots Fired 139 | . 84 55 Missed 37 | . 19 18 Damage Taken 1331 | . 815 516 Core 320 | . 185 135 Absorbed by Shields . | . . . Core Remaining (%) 63 | 100 26 . Volleys Fired 77 | 14 54 9 Largest 2 | 1 2 2 Hottest 100 | 50 100 100 Shots Fired 106 | 14 76 16 Gun 106 | 14 76 16 Cannon . | . . . Launcher . | . . . Special . | . . . Kinetic 4 | . 4 . Thermal 87 | 14 66 7 Explosive . | . . . Electromagnetic 15 | . 6 9 Robot Hit Streak 9 | 5 9 4 Robot Miss Streak 8 | 1 3 8 Penetration Max . | . . . Secondary Targets 2 | . 1 1 Max Gunslinging Chain 1 | . 1 1 Shots Hit Robots 67 | 12 47 8 Core Hits 41 | 4 26 11 Critical Kills . | . . . Critical Parts Destroyed . | . . . Critical Strikes 6 | 2 3 1 Burn 6 | 2 3 1 Melee Attacks . | . . . Impact . | . . . Slashing . | . . . Piercing . | . . . Sneak Attacks . | . . . Combat Hostiles . | . . . Follow-up Attacks . | . . . Damage Inflicted 1039 | 150 692 197 Guns 911 | 150 620 141 Cannons . | . . . Explosions 59 | . 59 . Melee . | . . . Ramming 69 | . 13 56 Kinetic 28 | . 28 . Thermal 772 | 150 584 38 Explosive . | . . . Electromagnetic 170 | . 67 103 Impact . | . . . Slashing . | . . . Piercing . | . . . Highest Corruption 2 | . 2 1 Average Corruption 1 | . 1 1 Corruption Purged . | . . . Corruption Blocked . | . . . Effects 7 | . 7 . Message Errors 1 | . 1 . Matter Fused 1 | . 1 . Energy Discharges 1 | . 1 . Parts Rejected 1 | . 1 . Data Loss (major) 1 | . 1 . Misfires 1 | . 1 . Weapon Failures 1 | . 1 . Overload Shots . | . . . Overflow Damage . | . . . Projectiles . | . . . Explosions . | . . . Melee . | . . . Knockbacks . | . . . Impact . | . . . Kinetic . | . . . Secondary . | . . . Self-Inflicted Damage 14 | . . 14 Shots . | . . . Rammed 13 | . 4 9 Targets Rammed 22 | . 5 17 Kicked 8 | . . 8 Crushed 1 | . 1 . Highest Temperature 373 | 40 373 162 Average Temperature 118 | 18 149 49 Received Heat Transfer 618 | . 375 243 Effects 1 | . 1 . Interference 1 | . 1 . Siege Activations . | . . . Robots Corrupted . | . . . Combat Hostiles . | . . . Parts Fried . | . . . Impact Corruptions . | . . . Robots Melted . | . . . Combat Hostiles . | . . . Parts Melted 12 | 2 7 3 Heat Transferred 2653 | 592 1876 185 Parts Sabotaged . | . . . Parts Stolen . | . . . Parts Stripped . | . . . Power Chain Reactions 1 | . 1 . Alert | -11 -10 -9 ------- Run | Yrd Mat Mat Peak Influence 168 | 15 168 140 Initial 9 | . 9 7 Average 45 | 4 47 53 Maximum Alert Level . | . . . Low Security (%) 100 | 100 100 100 Level 1 . | . . . Level 2 . | . . . Level 3 . | . . . Level 4 . | . . . Level 5 . | . . . High Security . | . . . Max Security . | . . . Squads Dispatched 3 | . 3 . Investigation 3 | . 3 . Extermination . | . . . Reinforcement . | . . . Assault . | . . . Garrison . | . . . Intercept . | . . . Searches Triggered . | . . . Construction Impeded . | . . . Haulers Reinforced . | . . . Active Scanning Responses . | . . . Cargo Convoy Interrupts . | . . . Stealth | -11 -10 -9 --------- Run | Yrd Mat Mat Distress Signals . | . . . Communications Jammed . | . . . Distress Signals . | . . . Times Spotted 26 | . 18 8 Peak Tracking Total 4 | . 3 4 Tactical Retreats . | . . . Traps | -11 -10 -9 ------- Run | Yrd Mat Mat Traps Triggered 4 | . 4 . Indirectly . | . . . Trap Hack Attempts . | . . . Triggered . | . . . Disarmed . | . . . Reprogrammed . | . . . Reused . | . . . Traps Extracted . | . . . Installed . | . . . Triggered . | . . . Machines | -11 -10 -9 ---------- Run | Yrd Mat Mat Machines Disabled . | . . . Max in Single Turn . | . . . Machines Repaired . | . . . Machines Dismantled . | . . . Machines Sabotaged . | . . . Overloaded Fab Kills . | . . . Hacking | -11 -10 -9 --------- Run | Yrd Mat Mat Machines Accessed 2 | . 1 1 Terminals 2 | . 1 1 Fabricators . | . . . Repair Stations . | . . . Recycling Units . | . . . Scanalyzers . | . . . Garrison Access . | . . . Total Hacks 6 | . 5 1 Successful 2 | . 1 1 Failed 4 | . 4 . Catastrophic 1 | . 1 . Database Lockouts . | . . . Manual 6 | . 5 1 Terminals 6 | . 5 1 Fabricators . | . . . Repair Stations . | . . . Recycling Units . | . . . Scanalyzers . | . . . Garrison Access . | . . . Terminal Hacks . | . . . Fabricator Hacks . | . . . Repair Station Hacks . | . . . Recycling Unit Hacks . | . . . Scanalyzer . | . . . Garrison Access Hacks . | . . . Unauthorized Hacks 2 | . 1 1 Terminals 2 | . 1 1 Operators 2 | . 1 1 Fabricators . | . . . Repair Stations . | . . . Recycling Units . | . . . Scanalyzers . | . . . Garrison Access . | . . . Data Cores Recovered . | . . . Used . | . . . Hacking Detections 1 | . 1 . Full Trace Events 1 | . 1 . Feedback Events . | . . . Feedback Blocked . | . . . Robot Schematics Acquired . | . . . Robots Built . | . . . Authchips . | . . . Time . | . . . Total Robot Build Rating . | . . . Part Schematics Acquired . | . . . Parts Built . | . . . Authchips . | . . . Time . | . . . Total Part Build Rating . | . . . Parts Repaired . | . . . Time . | . . . Parts Recycled . | . . . Recycled Matter . | . . . Retrieved Matter . | . . . Retrieved Components . | . . . Parts Scanalyzed . | . . . Part Schematics Acquired . | . . . Parts Damaged . | . . . Bothacking | -11 -10 -9 ------------ Run | Yrd Mat Mat Used RIF Installer . | . . . Robots Hacked . | . . . Non-combat . | . . . Combat . | . . . Robot Hacks Applied . | . . . Relay Couplers Released . | . . . Fabnet Peak Effective % . | . . . Robots Rewired . | . . . Allies Hacked . | . . . Hacks Repelled . | . . . Allies | -11 -10 -9 -------- Run | Yrd Mat Mat Total Allies . | . . . Largest Group . | . . . Highest-Rated Group . | . . . Highest-Rated Ally . | . . . Total Orders . | . . . Ally Attacks . | . . . Total Damage . | . . . Kills . | . . . Allies Corrupted . | . . . Allies Melted . | . . . Intel | -11 -10 -9 ------- Run | Yrd Mat Mat Robot Analysis Total . | . . . Derelict Logs Recovered . | . . . Drone Launches . | . . . Drone Recoveries . | . . . Exploration | -11 -10 -9 ------------- Run | Yrd Mat Mat Turns Passed 1411 | 131 932 348 Spaces Moved 606 | 62 398 146 Core 53 | 10 43 . Treads 400 | 52 348 . Legs 153 | . 7 146 Wheels . | . . . Hover . | . . . Flight . | . . . Fastest Speed 50 | 50 160 190 Average Speed 187 | 142 192 190 Slowest Speed 400 | 160 400 190 Overloaded Moves . | . . . Propulsion Burnouts . | . . . Robots Hopped . | . . . Cave-ins Triggered . | . . . Exploration Rate (%) 23 | 6 50 13 Regions Visited 2 Branch Regions . Pre-discovered Areas . | . . . Known Exits Taken . | . . . Unknown Exits Taken 2 | 1 1 . Scrap Searched . | . . . Spaces Dug . | . . . Terrain Destroyed 3 | . 3 . Melee . | . . . Projectile . | . . . AOE 3 | . 3 . Terrain Rammed . | . . . Walls Destroyed . | . . . Machines Disabled . | . . . Actions | -11 -10 -9 --------- Run | Yrd Mat Mat Total 764 | 91 484 189 Wait . | . . . Move 604 | 61 397 146 Hop . | . . . Pick Up 36 | 11 13 12 Fast Attach . | . . . Attach 17 | 5 10 2 Detach . | . . . Swap 3 | . 2 1 Drop 5 | . 3 2 Fire 77 | 14 54 9 Melee . | . . . Ram 9 | . . 9 Kick 8 | . . 8 Crush 5 | . 5 . Escape Stasis . | . . . Rewire . | . . . Trap . | . . . Miscellaneous . | . . . Route ------- -11/Scrapyard -10/Materials -9/Materials History --------- Turn | Location | Event 9 | -11/Scrapyard | Discovered new exit (range 14) 132 | -11/Scrapyard | Entered Materials 312 | -10/Materials | Build established: Mutant 781 | -10/Materials | Lost 4 parts (1p1n1u1w) 796 | -10/Materials | Discovered new exit (range 16) 842 | -10/Materials | Core integrity fell below 50% 892 | -10/Materials | Lost 3 parts (1p1n1w) 1064 | -10/Materials | Entered another Materials area 1064 | -9/Materials | Evolved 2 slots: Propulsion x1, Utility x1 1345 | -9/Materials | Build established: Scavenger-Mutant 1412 | -9/Materials | Self-destructed Last Messages --------------- 01394_ K-01 Serf collects debris. 01395_ G-47 Trooper destroyed. 01397_ K-01 Serf collects debris. 01397_ G-34 Mercenary destroyed. 01399_ Slammed into Y-45 Defender. 01399_ Imp. Terrain Scanner destroyed. 01399_ System corrupted by crushing effect (+1). 01400_ K-01 Serf collects debris. 01401_ Slammed into Y-45 Defender. 01403_ K-01 Serf collects debris. 01403_ Hvy. EM Shotgun destroyed. 01403_ Critical hit (Burn: +37). 01404_ Slammed into Y-45 Defender. 01406_ K-01 Serf collects debris. 01406_ K-01 Serf destroyed. 01407_ Slammed into Y-45 Defender. 01408_ Ion Engine broken. 01408_ Destabilizing: Short circuit. 01410_ Slammed into Y-45 Defender. 01412_ Acquired 10 matter. Map ----- +----------------------------------------------------+ | ?????????????????????????????????????????#???????? | | ?????????????????????????????????????????????????? | | ???????????????????????????????????#??????????##?? | | ????????????????????????????????????#?#????????#?? | | ???????????????????? ?????????????????????#?#????? | | ???????????????????????????????????????#?##???#??# | | ???????????????????????????????????????????????#?# | | ????????????????????????????????????????##?#?##### | | ?????????????????????########????????????????# | | ?????????????????????? #????????????????# | | ?????????????????????? #???? ???#??#????#!! | | ???????????????????????? #???? ???????#???# | | ?????????????????#??????# +??? ??????????#?# [ | | ??????????????????#?????# #????????????#???# [ | | ???????????????????????## #???????#??#?????##### | | ???????????????????????## ##?????#??????#?#????# | | ?????????????????????#?# ##################### | | ???????????????????????# | | ?????????? ????????????# T | | ???????????????????????# *%= | | ???????????????????????# !=*!##################### | | ????????????#?""??????####+#####???????# # | | ????????????????"?????#%%=%!% #??????## # | | ??????????????????????#%%[=== #???????# "" + | | ?????????? ???????????# *%%= #??????## "" # | | ??????????? ??????????# m@ #???????# " " # | | ??????????????????????# Y #??????## "Y" # | | ????????? ????????????# #?????#?# """ # | | ??????????????????????# #?#?????# # | | ?????????????#????????# #??????############ | | ??????????????????????# #??#???????# + | | ??????????????????????##########?????#??#?# # | | ?????????????????????????#????????????##?## """ # | | ????????????????" ?????????????#??????#??## """ ?# | | ???????????????????#?#????????????????????# """ ?# | | ????????????????"? ????#??????????????????# ??# | | ??????????????????????????????????????#??######??# | | ????????????????????????#?#????????#???#???????#?# | | ?????????????????????????????????????????????????# | | ????????????????????????????#?????????????###?#??# | | ?????????????????????????????????????????????????# | | ?????????????????????????????????????? ??????????# | | ?????????????????????????????????????????????????# | | ?????????????????????????????????????????????????# | | ?????????????????????????????????????????????????+ | | ?????????????????????????????????????????????????# | | ?????????????????????????????????????????????????# | | ?????????????????????????????????????????????????# | | ????????????????????????????????????????????????? | | ????????????????????????????????????????????????? | +----------------------------------------------------+ Best States ------------- Heat Dissipation 28 Energy Generation 10 Energy Capacity 250 Matter Stores 300 Matter Capacity 300 Sight Range 16 Terrain Scan Range 16 Terrain Scan Density 10 Additional Mass Support 9 Evasion (%) 50 Recoil Reduction 2 Item Schematics ----------------- None Robot Schematics ------------------ None Fabricated ------------ Nothing Alien Tech Used ----------------- None Achievements -------------- None Challenges ------------ None Game ------ Seed CentriumAntigravHumpback Manual? 0 Play Time 00:14:28 Cumulative 15.5 hours Start 2024.11.07 @ 17:39:18 End 2024.11.07 @ 17:51:46 Sessions 1 Manual Loads 0 Difficulty Rogue Special Mode None Game No. 37 Rogue 37 Adventurer 0 Explorer 0 Win Type - Total 0 Types 0/0/0/0/0/0/0/0/0 Lore% 8 Gallery% 15 Achievement% 15 Wizard Run 0 Options --------- Layout 1 ASCII 0 Keyboard 0 Movement Mouse Keybinds 0 Fullscreen 1 Font 24/Smallcaps Map View 50x40 Zoom Use 0% Tactical HUD 1 Map Filters NONE Filters NONE Steam 1 RUN: 60102c37-dd01-4ae3-a44c-0848aea99c80